bitfinex-derivatives/quotes_SOLF0:USTF0_20250522
["timestamp","ask_amount","ask_price","bid_price","bid_amount"]
[1747910936132,2.06689878,178.48,178.44,0.04014247]
[1747910936437,5.6045,178.43,178.38,5.6059]
[1747910937141,2.0289,178.48,178.32,4.85879738]
[1747910937538,5.6057,178.39,178.34,5.607]
[1747910937740,0.04029752,178.38,178.34,5.607]
[1747910938138,0.04029752,178.38,178.29,4.85879738]
[1747910938644,5.64639752,178.38,178.32,5.6077]
[1747910938847,5.64639752,178.38,178.29,4.85879738]
[1747910939046,0.04029752,178.38,178.29,4.85879738]
[1747910939245,0.04029752,178.38,178.32,5.6076]
[1747910939546,0.04029752,178.38,178.29,4.85879738]
[1747910939750,5.6066,178.36,178.31,5.608]
[1747910939951,0.04029752,178.38,178.29,4.85879738]
[1747910940249,5.64590499,178.35,178.3,5.6083]
[1747910940440,0.03811739,178.34,178.29,4.85879738]
[1747910940640,0.03594027,178.33,178.29,4.85879738]
[1747910940840,0.03843452,178.33,178.26,9.09189556]
[1747910941349,0.03843452,178.33,178.29,5.6086]
[1747910941547,0.03843452,178.33,178.26,9.09189556]
[1747910941848,0.03843452,178.33,178.31,5.6079]
[1747910942348,0.03843452,178.33,178.29,5.6085]
[1747910942545,0.03843452,178.33,178.26,9.09189556]
[1747910942850,0.03843452,178.33,178.29,5.6085]
[1747910943347,5.608,178.32,178.26,5.6094]
[1747910943552,0.03843452,178.33,178.26,7.11059556]
[1747910944054,0.03843452,178.33,178.3,5.6083]
[1747910944351,0.03843452,178.33,178.26,7.11059556]
[1747910944652,0.03843452,178.33,178.31,5.6078]
[1747910944851,0.03843452,178.33,178.26,7.11059556]
[1747910945055,0.03843452,178.33,178.3,5.6082]
[1747910945355,0.03843452,178.33,178.27,7.56959556]
[1747910945652,0.03843452,178.33,178.27,0.459]
[1747910945838,0.03843452,178.33,178.28,7.11059556]
[1747910946446,0.03843452,178.33,178.32,5.6078]
[1747910946651,1.9099,178.44,178.28,7.11059556]
[1747910947756,0.04046596,178.38,178.34,0.03660438]
[1747910948955,5.64646596,178.38,178.34,0.03660438]
[1747910949756,0.04046596,178.38,178.34,0.03660438]
[1747910950049,5.64646596,178.38,178.34,0.03660438]
[1747910950440,0.04046596,178.38,178.34,0.03660438]
[1747910951354,5.64656596,178.38,178.34,0.03660438]
[1747910951547,0.04046596,178.38,178.34,0.03660438]
[1747910951949,5.6068,178.35,178.34,0.03660438]
[1747910961057,0.04046596,178.38,178.34,0.03660438]
[1747910961962,0.04046596,178.38,178.35,5.6067]
[1747910962457,0.04046596,178.38,178.35,5.6068]
[1747910962860,0.04046596,178.38,178.34,0.03660438]
[1747910963260,0.04046596,178.38,178.35,5.6068]
[1747910963561,0.04046596,178.38,178.34,0.03660438]
[1747910964055,0.04046596,178.38,178.34,5.64360438]
[1747910965458,0.04046596,178.38,178.35,5.6068]
[1747910966056,0.04046596,178.38,178.34,0.03660438]
[1747910966057,0.04046596,178.38,178.34,5.64370438]
[1747910967161,0.04046596,178.38,178.35,5.6068]
[1747910967466,0.04046596,178.38,178.34,0.03660438]
[1747910967855,0.04046596,178.38,178.34,5.64350438]
[1747910968162,0.04046596,178.38,178.34,0.03660438]
[1747910968464,0.04046596,178.38,178.34,5.64360438]
[1747910968659,0.04046596,178.38,178.34,0.03660438]
[1747910969263,0.04046596,178.38,178.35,5.6068]
[1747910970163,0.04046596,178.38,178.34,0.03660438]
[1747910970563,0.04046596,178.38,178.35,5.6068]
[1747910970761,0.04046596,178.38,178.34,0.03660438]
[1747910971161,0.04046596,178.38,178.36,5.6064]
[1747910971561,0.04046596,178.38,178.34,0.03660438]
[1747910972563,0.04046596,178.38,178.36,5.6064]
[1747910972963,0.04046596,178.38,178.34,0.03660438]
[1747910974364,0.04046596,178.38,178.36,5.6064]
[1747910975052,0.04046596,178.38,178.34,0.03660438]
[1747910975257,0.04046596,178.38,178.37,5.6062]
[1747910975665,0.04046596,178.38,178.36,5.6064]
[1747910976662,0.04046596,178.38,178.37,5.6062]
[1747910977266,0.04046596,178.38,178.36,5.6064]
[1747910977460,0.04046596,178.38,178.34,0.03660438]
[1747910977968,0.04046596,178.38,178.37,5.6062]
[1747910979269,1.9528,178.45,178.4,5.6052]
[1747910979470,1.9528,178.45,178.36,7.11059556]
[1747910979969,1.9528,178.45,178.41,5.6049]
[1747910980163,0.04204344,178.45,178.41,0.03963336]
[1747910982667,0.04204344,178.45,178.43,5.6041]
[1747910982870,0.04204344,178.45,178.41,0.03963336]
[1747910983563,5.64594344,178.45,178.41,0.03963336]
[1747910983957,0.04204344,178.45,178.41,0.03963336]
[1747910984574,0.04204344,178.45,178.41,5.64433336]
[1747910985061,0.04204344,178.45,178.41,0.03963336]
[1747910985262,5.64594344,178.45,178.41,0.03963336]
[1747910986081,0.04204344,178.45,178.41,0.03963336]
[1747910987171,5.6041,178.44,178.41,0.03963336]
[1747910988070,5.64584344,178.45,178.41,0.03963336]
[1747910988974,5.64584344,178.45,178.41,5.64453336]
[1747910989176,5.64584344,178.45,178.41,0.03963336]
[1747910989377,5.604,178.44,178.41,0.03963336]
[1747910990279,5.6044,178.43,178.41,0.03963336]
[1747910990575,0.04204344,178.45,178.41,0.03963336]
[1747910991080,5.6042,178.44,178.41,0.03963336]
[1747910994680,5.64584344,178.45,178.41,0.03963336]
[1747910994880,0.04204344,178.45,178.41,0.03963336]
[1747910995182,5.6041,178.44,178.41,0.03963336]
[1747910998485,5.6043,178.43,178.41,0.03963336]
[1747910998678,0.04204344,178.45,178.41,0.03963336]
[1747910998882,5.6041,178.44,178.41,0.03963336]
[1747910999179,0.04204344,178.45,178.41,0.03963336]
[1747910999379,5.6043,178.43,178.41,0.03963336]
[1747910999578,1.9418,178.44,178.41,0.03963336]
[1747910999986,7.5458,178.44,178.41,0.03963336]
[1747911001388,7.5458,178.44,178.39,5.6054]
[1747911001389,5.6043,178.43,178.39,5.6054]
[1747911001583,1.9418,178.44,178.39,5.6054]
[1747911001889,7.5459,178.44,178.39,5.6054]
[1747911002393,7.5459,178.44,178.4,0.04035161]
[1747911002892,7.5459,178.44,178.4,5.64555161]
[1747911003191,1.9418,178.44,178.4,0.04035161]
[1747911003591,7.546,178.44,178.4,0.04035161]
[1747911004293,5.6043,178.43,178.4,0.04035161]
[1747911004590,0.04204344,178.45,178.4,0.04035161]
[1747911004991,5.6042,178.44,178.4,0.04035161]
[1747911005797,5.6044,178.43,178.4,0.04035161]
[1747911005991,0.04204344,178.45,178.4,0.04035161]
[1747911006383,5.64584344,178.45,178.4,5.64535161]
[1747911006587,0.04204344,178.45,178.4,5.64535161]
[1747911006994,5.64584344,178.45,178.4,5.64535161]
[1747911008595,5.604,178.44,178.4,5.64535161]
[1747911008796,0.04204344,178.45,178.4,5.64535161]
[1747911009091,0.04204344,178.45,178.4,0.04035161]
[1747911009701,0.04204344,178.45,178.42,5.6046]
[1747911009999,0.04204344,178.45,178.4,0.04035161]
[1747911010800,0.04204344,178.45,178.42,7.11059556]
[1747911011299,5.14023088,178.47,178.42,7.11059556]
[1747911011700,5.00873088,178.47,178.42,7.11059556]
[1747911012000,5.39264118,178.5,178.46,7.11059556]
[1747911012194,3.9474,178.57,178.46,7.15364213]
[1747911012399,5.6002,178.56,178.46,7.15364213]
[1747911012793,7.647,178.55,178.46,0.04304657]
[1747911012993,2.0464,178.55,178.46,0.04304657]
[1747911013194,0.03909557,178.51,178.46,0.04304657]
[1747911013501,0.03909557,178.51,178.49,5.6024]
[1747911013703,0.03909557,178.51,178.46,0.04304657]
[1747911015100,5.64099557,178.51,178.46,0.04304657]
[1747911015595,5.6023,178.5,178.46,0.04304657]
[1747911016199,9.5572,178.5,178.46,0.04304657]
[1747911016908,3.9549,178.5,178.46,0.04304657]
[1747911018203,9.5571,178.5,178.46,0.04304657]
[1747911019002,3.9549,178.5,178.46,5.64644657]
[1747911019207,3.9549,178.5,178.46,0.04304657]
[1747911019705,3.9549,178.5,178.46,5.64634657]
[1747911020301,9.557,178.5,178.46,0.04304657]
[1747911021307,3.9549,178.5,178.46,0.04304657]
[1747911022307,5.6025,178.49,178.46,0.04304657]
[1747911022808,9.5571,178.5,178.46,0.04304657]
[1747911023109,3.9549,178.5,178.46,0.04304657]
[1747911023506,3.9549,178.5,178.39,4.81441278]
[1747911024010,5.6034,178.47,178.37,7.11059556]
[1747911024209,3.9549,178.5,178.37,7.11059556]
[1747911024509,3.9549,178.5,178.42,0.03629061]
[1747911024806,0.04182203,178.45,178.42,0.03629061]
[1747911025206,0.04182203,178.45,178.42,5.64089061]
[1747911025409,0.04182203,178.45,178.42,0.03629061]
[1747911025708,0.04182203,178.45,178.43,5.6041]
[1747911026011,0.04182203,178.45,178.42,0.03629061]
[1747911026209,0.04182203,178.45,178.43,5.6043]
[1747911026915,0.04182203,178.45,178.42,5.64079061]
[1747911027110,0.04182203,178.45,178.42,0.03629061]
[1747911027413,5.64572203,178.45,178.42,0.03629061]
[1747911027614,0.04182203,178.45,178.42,0.03629061]
[1747911028008,0.04182203,178.45,178.43,5.6043]
[1747911028212,0.04182203,178.45,178.42,0.03629061]
[1747911028913,0.04182203,178.45,178.43,5.6041]
[1747911030416,0.04182203,178.45,178.44,5.604]
[1747911031417,3.9549,178.5,178.42,0.03629061]
[1747911031713,2.0464,178.55,178.48,7.11059556]
[1747911032418,3.9448,178.58,178.48,7.11059556]
[1747911032718,0.03841192,178.53,178.52,5.6015]
[1747911033016,0.04200293,178.54,178.5,0.04128657]
[1747911033926,10.28046177,178.59,178.57,5.5999]
[1747911034220,3.9643,178.63,178.53,7.11059556]
[1747911034413,3.9643,178.63,178.57,7.11059556]
[1747911034814,3.9643,178.63,178.62,5.5984]
[1747911035021,0.03612269,178.64,178.62,5.5984]
[1747911035220,0.03612269,178.64,178.6,5.5988]
[1747911036527,0.03612269,178.64,178.61,5.5987]
[1747911036826,5.9987,178.73,178.61,7.11059556]
[1747911037318,5.5963,178.69,178.62,5.5983]
[1747911038126,0.04012181,178.67,178.64,0.04289024]
[1747911039129,0.04012181,178.67,178.52,4.81441278]
[1747911039321,13.10929556,178.73,178.52,4.81441278]
[1747911039322,13.10929556,178.73,178.55,7.11059556]
[1747911039630,13.10929556,178.73,178.56,5.6001]
[1747911039926,13.10929556,178.73,178.55,7.11059556]
[1747911040128,0.03552232,178.66,178.62,0.04221191]
[1747911040427,5.5983,178.63,178.62,0.04135336]
[1747911040612,1.9351,178.65,178.62,0.04135336]
[1747911041226,5.598,178.64,178.62,0.04135336]
[1747911041525,1.9351,178.65,178.62,0.04135336]
[1747911041827,5.598,178.64,178.62,0.04135336]
[1747911042728,1.9351,178.65,178.62,0.04135336]
[1747911044026,7.5328,178.65,178.62,0.04135336]
[1747911044226,1.9351,178.65,178.62,0.04135336]
[1747911044926,7.5326,178.65,178.62,0.04135336]
[1747911045729,1.9351,178.65,178.62,0.04135336]
[1747911045921,0.03552232,178.66,178.62,0.04135336]
[1747911046726,0.03552232,178.66,178.62,7.15194892]
[1747911046929,0.03552232,178.66,178.63,5.598]
[1747911047429,0.03552232,178.66,178.62,7.15194892]
[1747911047825,0.03552232,178.66,178.62,0.04135336]
[1747911048028,0.03552232,178.66,178.53,7.11059556]
[1747911048325,2.0032,178.71,178.53,7.11059556]
[1747911048830,5.5989,178.61,178.53,7.11059556]
[1747911049018,0.03671629,178.59,178.55,0.04237513]
[1747911049824,0.03671629,178.59,178.55,5.64287513]
[1747911050330,0.03671629,178.59,178.55,0.04237513]
[1747911050726,5.63611629,178.59,178.55,0.04237513]
[1747911050929,0.03671629,178.59,178.55,0.04237513]
[1747911051430,0.03671629,178.59,178.56,5.6002]
[1747911053232,0.03671629,178.59,178.57,5.5999]
[1747911054628,0.03671629,178.59,178.58,5.5996]
[1747911054935,2.0032,178.71,178.58,7.11059556]
[1747911055132,5.5966,178.68,178.58,7.11059556]
[1747911055736,0.0409508,178.65,178.61,0.04133908]
[1747911056632,0.0409508,178.65,178.63,5.598]
[1747911057735,0.0409508,178.65,178.64,5.5977]
[1747911059233,0.0409508,178.65,178.61,7.15193464]
[1747911059833,0.0409508,178.65,178.61,12.75043464]
[1747911060033,0.0409508,178.65,178.61,7.15193464]
[1747911060529,5.5978,178.64,178.61,0.04133908]
[1747911060741,0.0409508,178.65,178.61,0.04133908]
[1747911061139,5.6385508,178.65,178.61,0.04133908]
[1747911061343,0.0409508,178.65,178.61,0.04133908]
[1747911061635,3.9265,178.64,178.61,0.04133908]
[1747911062335,0.0409508,178.65,178.62,5.5981]
[1747911062539,0.0409508,178.65,178.61,0.04133908]
[1747911063538,0.0409508,178.65,178.61,7.15193464]
[1747911063932,0.0409508,178.65,178.64,5.5977]
[1747911064736,5.6409508,178.65,178.52,7.11059556]
[1747911065035,7.11059556,178.65,178.48,6.41929128]
[1747911065237,7.11059556,178.61,178.51,1.71311278]
[1747911065739,0.03899815,178.58,178.54,0.03984842]
[1747911065932,0.04180314,178.58,178.54,0.03839985]
[1747911066233,5.6006,178.55,178.54,0.03839985]
[1747911068036,5.6,178.57,178.54,0.03839985]
[1747911068334,0.04180314,178.58,178.54,0.03839985]
[1747911068542,5.6002,178.57,178.54,0.03839985]
[1747911068841,0.04180314,178.58,178.54,0.03839985]
[1747911070038,5.6005,178.56,178.54,0.03839985]
[1747911070239,0.04180314,178.58,178.54,0.03839985]
[1747911071045,5.6006,178.55,178.54,0.03839985]
[1747911075239,0.04180314,178.58,178.54,0.03839985]
[1747911075744,5.6003,178.56,178.54,0.03839985]
[1747911076244,5.6,178.57,178.54,0.03839985]
[1747911076445,0.04180314,178.58,178.54,0.03839985]
[1747911076746,5.6003,178.56,178.54,0.03839985]
[1747911077145,0.04180314,178.58,178.54,0.03839985]
[1747911078044,5.6005,178.56,178.54,0.03839985]
[1747911078743,5.6006,178.55,178.54,0.03839985]
[1747911078947,5.9268,178.57,178.43,1.9763]
[1747911079843,0.03784362,178.52,178.48,5.64163683]
[1747911080044,0.03784362,178.52,178.48,0.03903683]
[1747911081251,0.03784362,178.52,178.49,5.6024]
[1747911082250,0.03784362,178.52,178.48,5.64173683]
[1747911082450,0.03784362,178.52,178.48,0.03903683]
[1747911083552,0.03784362,178.52,178.51,5.6018]
[1747911084253,3.8763,178.57,178.53,5.6011]
[1747911084751,3.8763,178.57,178.46,3.9583]
[1747911084951,9.4763,178.57,178.52,5.6013]
[1747911085158,9.4763,178.57,178.46,3.9583]
[1747911085350,0.04137159,178.53,178.5,0.04115423]
[1747911086058,1.919,178.64,178.5,0.04115423]
[1747911086352,1.919,178.64,178.5,1.8698]
[1747911086957,0.04220739,178.59,178.56,5.6]
[1747911087160,0.04220739,178.59,178.55,0.04060984]
[1747911087955,0.04220739,178.59,178.57,5.5997]
[1747911088457,0.04220739,178.59,178.55,0.04060984]
[1747911089357,5.64170739,178.59,178.55,0.04060984]
[1747911090459,0.04220739,178.59,178.55,5.64110984]
[1747911091956,0.04220739,178.59,178.58,5.5996]
[1747911092962,4.0798,178.66,178.55,7.15625516]
[1747911093160,4.0798,178.66,178.55,7.11564532]
[1747911093660,5.16947798,178.68,178.55,7.11564532]
[1747911093959,0.04090317,178.63,178.6,0.0401352]
[1747911094360,0.04090317,178.63,178.62,5.5984]
[1747911096063,1.9699,178.7,178.64,5.5977]
[1747911096264,5.5965,178.69,178.64,5.5977]
[1747911096865,1.9699,178.7,178.59,7.11564532]
[1747911097161,0.03960602,178.66,178.63,0.03697808]
[1747911098966,0.03960602,178.66,178.56,7.11564532]
[1747911099164,5.5981,178.63,178.56,7.11564532]
[1747911100068,0.03789121,178.61,178.58,0.0396878]
[1747911100669,0.03789121,178.61,178.6,5.599]
[1747911101967,0.03789121,178.61,178.59,5.5992]
[1747911102169,0.03789121,178.61,178.58,0.0396878]
[1747911103470,5.63659121,178.61,178.58,0.0396878]
[1747911103665,0.03789121,178.61,178.58,0.0396878]
[1747911106280,5.5993,178.59,178.58,0.0396878]
[1747911106479,1.8881,178.6,178.53,5.601]
[1747911106672,1.9639,178.58,178.47,19.03817988]
[1747911106873,7.5636,178.58,178.55,5.6005]
[1747911107073,1.9639,178.58,178.47,19.03817988]
[1747911107376,1.9639,178.58,178.55,5.6004]
[1747911107776,1.9998584,178.58,178.55,5.64077294]
[1747911109182,1.9998584,178.58,178.55,0.04037294]
[1747911109777,0.0359584,178.58,178.55,0.04037294]
[1747911111781,0.0359584,178.58,178.55,5.64087294]
[1747911112075,0.0359584,178.58,178.55,0.04037294]
[1747911112282,0.0359584,178.58,178.55,5.64087294]
[1747911112684,0.0359584,178.58,178.55,0.04037294]
[1747911114682,0.0359584,178.58,178.57,5.5999]
[1747911115487,0.0359584,178.58,178.55,0.04037294]
[1747911115886,0.0359584,178.58,178.56,5.6002]
[1747911116383,0.0359584,178.58,178.57,5.5999]
[1747911121995,0.0359584,178.58,178.56,5.6001]
[1747911122894,0.0359584,178.58,178.55,0.04037294]
[1747911123491,0.0359584,178.58,178.48,6.41929128]
[1747911123691,5.6011,178.54,178.48,6.41929128]
[1747911124399,5.6012,178.53,178.48,12.02189128]
[1747911124594,0.03776746,178.52,178.49,0.03967927]
[1747911124890,5.6021,178.5,178.49,0.03967927]
[1747911125098,3.9588,178.51,178.42,6.41929128]
[1747911126195,0.03995913,178.48,178.46,5.6031]
[1747911126796,0.03995913,178.48,178.47,5.6031]
[1747911127190,5.913e-05,178.48,178.47,5.6031]
[1747911127500,1.8917,178.59,178.45,0.04126081]
[1747911127689,1.8917,178.59,178.43,11.20614532]
[1747911127890,5.16947798,178.56,178.43,11.20614532]
[1747911128092,10.76977798,178.56,178.43,11.20614532]
[1747911128294,0.03628025,178.51,178.48,0.04219606]
[1747911128597,0.03628025,178.51,178.5,5.6021]
[1747911137702,1.8831,178.58,178.5,5.6021]
[1747911138003,1.8831,178.58,178.47,7.11564532]
[1747911138909,0.03666445,178.54,178.51,0.03897299]
[1747911140609,0.03666445,178.54,178.53,5.6012]
[1747911141206,0.03666445,178.54,178.52,5.6014]
[1747911141508,0.03666445,178.54,178.51,0.03897299]
[1747911141702,0.03666445,178.54,178.53,5.6012]
[1747911143908,1.8917,178.59,178.57,5.5999]
[1747911144606,1.8917,178.59,178.58,5.5996]
[1747911144910,0.03696638,178.6,178.58,5.5996]
[1747911145908,0.03696638,178.6,178.57,0.03984057]
[1747911146298,0.03696638,178.6,178.48,7.11564532]
[1747911146605,2.0435,178.61,178.48,7.11564532]
[1747911146911,5.5991,178.6,178.55,5.6004]
[1747911147113,5.5991,178.6,178.48,7.11564532]
[1747911147411,0.04022996,178.56,178.52,0.03878317]
[1747911148205,0.04022996,178.56,178.55,5.6006]
[1747911149204,0.04022996,178.56,178.54,5.6008]
[1747911149513,0.04022996,178.56,178.52,0.03878317]
[1747911150016,0.04022996,178.56,178.55,5.6006]
[1747911150611,0.04022996,178.56,178.52,0.03878317]
[1747911151312,0.04022996,178.56,178.53,5.601]
[1747911152612,0.04022996,178.56,178.54,5.6008]
[1747911153006,0.04022996,178.56,178.53,5.6011]
[1747911153508,0.04022996,178.56,178.52,0.03878317]
[1747911153708,0.04022996,178.56,178.54,5.6007]
[1747911155913,0.04022996,178.56,178.55,5.6006]
[1747911156413,0.04022996,178.56,178.52,0.03878317]
[1747911156615,0.04022996,178.56,178.54,5.6008]
[1747911158918,0.04022996,178.56,178.55,5.6006]
[1747911164022,5.5985,178.62,178.57,5.5998]
[1747911164220,3.8979,178.64,178.51,9.13124532]
[1747911164418,5.5994,178.59,178.51,9.13124532]
[1747911164721,5.5994,178.59,178.54,5.6006]
[1747911164921,5.5991,178.6,178.51,9.13124532]
[1747911165114,0.03773756,178.57,178.54,0.03697025]
[1747911165314,0.03773756,178.57,178.55,5.6004]
[1747911168024,0.03773756,178.57,178.54,0.03697025]
[1747911168724,0.03773756,178.57,178.56,5.6003]
[1747911171028,3.8979,178.64,178.55,7.11564532]
[1747911171718,5.5986,178.62,178.52,7.11564532]
[1747911171930,3.8979,178.64,178.52,7.11564532]
[1747911172122,0.03655945,178.6,178.56,0.03810794]
[1747911172820,0.03655945,178.6,178.58,5.5994]
[1747911173124,0.03655945,178.6,178.56,0.03810794]
[1747911174524,0.03655945,178.6,178.59,5.5993]
[1747911178625,7.15547798,178.66,178.56,7.15375326]
[1747911179527,0.04091761,178.63,178.62,5.5984]
[1747911180922,0.04091761,178.63,178.61,0.04081316]
[1747911181517,0.04091761,178.63,178.61,5.63941316]
[1747911181926,0.04091761,178.63,178.61,0.04081316]
[1747911182728,0.04091761,178.63,178.62,5.5984]
[1747911185331,0.04091761,178.63,178.61,5.63941316]
[1747911185525,0.04091761,178.63,178.61,0.04081316]
[1747911185726,0.04091761,178.63,178.62,5.5984]
[1747911188533,0.04091761,178.63,178.61,0.04081316]
[1747911189132,0.04091761,178.63,178.62,5.5984]
[1747911201439,0.04091761,178.63,178.61,5.63931316]
[1747911201738,0.04091761,178.63,178.61,0.04081316]
[1747911201939,5.64091761,178.63,178.54,4.82912022]
[1747911202142,3.9443,178.62,178.54,4.82912022]
[1747911202938,3.9443,178.62,178.56,0.04278658]
[1747911203240,0.04041997,178.61,178.56,0.04278658]
[1747911207545,0.04041997,178.61,178.59,5.5991]
[1747911210145,0.04041997,178.61,178.6,5.599]
[1747911218856,0.04041997,178.61,178.59,5.5992]
[1747911220960,0.04041997,178.61,178.6,5.599]
[1747911222562,0.04041997,178.61,178.57,112.9]
[1747911223065,0.04041997,178.61,178.59,5.5992]
[1747911223261,0.04041997,178.61,178.57,112.9]
[1747911224966,0.04041997,178.61,178.59,5.5991]
[1747911225353,0.04041997,178.61,178.57,112.9]
[1747911226758,0.04041997,178.61,178.6,5.599]
[1747911227766,0.04041997,178.61,178.6,10.15082303]
[1747911229671,0.04041997,178.61,178.6,5.599]
[1747911234573,5.16947798,178.66,178.58,113.6]
[1747911234775,5.16947798,178.66,178.59,7.11254581]
[1747911235072,5.16947798,178.67,178.59,7.11254581]
[1747911235576,0.0360098,178.65,178.63,5.5978]
[1747911236679,0.0360098,178.65,178.62,5.5983]
[1747911236978,0.0360098,178.65,178.61,0.03997245]
[1747911237977,0.0360098,178.65,178.63,5.5979]
[1747911239183,0.0360098,178.65,178.64,5.5977]
[1747911242677,0.0360098,178.65,178.61,0.03997245]
[1747911242874,5.5984,178.62,178.61,0.03997245]
[1747911243078,5.9353,178.64,178.56,4.82912022]
[1747911243579,5.9353,178.64,178.58,5.5996]
[1747911243580,5.5989,178.61,178.58,5.5996]
[1747911243783,5.9353,178.64,178.56,4.82912022]
[1747911243984,0.04090055,178.62,178.58,0.03908893]
[1747911244190,0.04090055,178.62,178.58,5.63868893]
[1747911244385,0.04090055,178.62,178.58,0.03908893]
[1747911244588,5.5993,178.59,178.58,0.03908893]
[1747911244887,5.5993,178.59,178.58,0.00593253]
[1747911246785,5.6005,178.56,178.52,113.6]
[1747911247189,5.6005,178.56,178.53,5.601]
[1747911247690,5.6006,178.55,178.53,5.63635535]
[1747911247892,0.04146026,178.56,178.53,5.63635535]
[1747911248187,0.04146026,178.56,178.54,5.6008]
[1747911250293,0.04146026,178.56,178.55,5.6006]
[1747911251893,5.16947798,178.61,178.58,5.5996]
[1747911252595,5.16947798,178.61,178.6,5.599]
[1747911253103,5.16947798,178.61,178.59,0.04118827]
[1747911253396,5.16947798,178.61,178.59,5.64038827]
[1747911253597,0.04084237,178.62,178.59,5.64038827]
[1747911253796,0.04084237,178.62,178.6,5.599]
[1747911254096,0.04084237,178.62,178.59,0.04118827]
[1747911254493,0.04084237,178.62,178.59,5.64038827]
[1747911254692,0.04084237,178.62,178.59,0.04118827]
[1747911254891,5.599,178.6,178.59,0.04118827]
[1747911257199,5.599,178.6,178.59,0.00769052]
[1747911266504,2.0214,178.61,178.59,0.00769052]
[1747911267101,5.599,178.6,178.59,0.00769052]
[1747911269901,5.6001,178.57,178.54,114.7]
[1747911270606,5.6001,178.57,178.54,120.3007]
[1747911270904,5.64279404,178.57,178.54,120.3365571]
[1747911272106,0.04269404,178.57,178.55,5.6005]
[1747911272307,0.04269404,178.57,178.54,114.7358571]
[1747911273307,0.04269404,178.57,178.54,120.3364571]
[1747911273805,0.04269404,178.57,178.55,5.6005]
[1747911274105,0.04269404,178.57,178.54,114.7358571]
[1747911274608,0.04269404,178.57,178.55,5.6004]
[1747911277905,0.04269404,178.57,178.56,5.6003]
[1747911281615,5.16947798,178.63,178.56,7.11254581]
[1747911282006,5.16947798,178.63,178.61,5.5984]
[1747911282313,5.16947798,178.63,178.6,221.12]
[1747911282511,5.21075863,178.63,178.6,221.15970541]
[1747911283113,5.21075863,178.63,178.6,226.75870541]
[1747911283511,5.21075863,178.63,178.6,5.63870541]
[1747911284112,5.21075863,178.63,178.61,5.5986]
[1747911285516,0.04128065,178.63,178.61,5.5986]
[1747911285811,0.04128065,178.63,178.6,5.63860541]
[1747911287210,0.04128065,178.63,178.6,0.03970541]
[1747911287512,0.04128065,178.63,178.6,0.007355]
[1747911289012,5.63958065,178.63,178.6,5.606255]
[1747911289322,0.04128065,178.63,178.6,0.007355]
[1747911289714,5.5987,178.61,178.6,0.007355]
[1747911290017,0.04128065,178.63,178.6,0.007355]
[1747911290204,0.04128065,178.63,178.62,5.5984]
[1747911290406,5.21075863,178.63,178.62,5.5984]
[1747911293513,5.21075863,178.63,178.61,5.5986]
[1747911293720,0.04128065,178.63,178.61,5.5986]
[1747911294719,0.04128065,178.63,178.6,5.606255]
[1747911295221,0.04128065,178.63,178.6,0.007355]
[1747911295521,0.04128065,178.63,178.61,5.5984]
[1747911295712,0.04128065,178.63,178.6,0.007355]
[1747911295908,5.16947798,178.68,178.6,0.007355]
[1747911296115,5.16947798,178.68,178.65,5.5974]
[1747911297012,5.20582748,178.68,178.65,0.04110035]
[1747911297820,5.5971,178.66,178.65,0.04110035]
[1747911298523,115.78,178.67,178.58,115.8]
[1747911298921,115.78,178.67,178.59,5.5992]
[1747911299423,5.5983,178.63,178.61,0.0385036]
[1747911299626,0.03548433,178.65,178.61,0.0385036]
[1747911300623,5.5984,178.62,178.61,0.0385036]
[1747911301626,5.5981,178.63,178.61,0.0385036]
[1747911301826,1.89528433,178.65,178.61,0.0385036]
[1747911302821,5.5984,178.62,178.61,0.0385036]
[1747911305434,121.4,178.62,178.49,112.79929128]
[1747911305640,1.9049,178.61,178.49,122.21929128]
[1747911305840,1.9049,178.61,178.49,115.8]
[1747911306034,5.6014,178.53,178.49,120.62912022]
[1747911306232,115.8,178.58,178.49,120.62912022]
[1747911306431,0.03571816,178.55,178.52,0.03795412]
[1747911306631,5.6011,178.54,178.52,0.03795412]
[1747911306832,0.03571816,178.55,178.52,0.03795412]
[1747911307243,5.6012,178.53,178.52,0.03795412]
[1747911309741,5.6025,178.49,178.46,121.4233]
[1747911309940,117.7069,178.54,178.44,115.82]
[1747911310137,117.7069,178.54,178.44,121.424]
[1747911310649,0.03834979,178.51,178.47,0.04113441]
[1747911311849,5.6024,178.5,178.47,0.04113441]
[1747911312037,0.03834979,178.51,178.47,0.04113441]
[1747911312443,5.6025,178.49,178.47,0.04113441]
[1747911313144,5.6028,178.48,178.47,0.04113441]